[Event "*** Titled Tuesday Blitz"]
[Site "Chess.com"]
[Date "2020.05.26"]
[Round "10"]
[White "Alexandercs432"]
[Black "Chuchofrio1"]
[Result "0-1"]
[WhiteElo "2123"]
[BlackElo "2268"]
[TimeControl "180+1"]
[EndTime "12:04:14 PDT"]
[Termination "Chuchofrio1 won on time"]

1. e4 {[%clk 0:03:00.9]} 1... e5 {[%clk 0:02:59.2]} 2. Nf3 {[%clk 0:03:00.4]}
2... Nc6 {[%clk 0:02:59.4]} 3. Bb5 {[%clk 0:02:59.8]} 3... a6 {[%clk 0:02:58.2]}
4. Ba4 {[%clk 0:02:59.9]} 4... Nf6 {[%clk 0:02:57]} 5. O-O {[%clk 0:03:00]} 5...
Be7 {[%clk 0:02:55.5]} 6. Re1 {[%clk 0:02:59.3]} 6... b5 {[%clk 0:02:55.3]} 7.
Bb3 {[%clk 0:02:59.3]} 7... O-O {[%clk 0:02:55.9]} 8. c3 {[%clk 0:02:59.4]} 8...
d5 {[%clk 0:02:56.5]} 9. exd5 {[%clk 0:03:00.3]} 9... Nxd5 {[%clk 0:02:57.4]}
10. Nxe5 {[%clk 0:03:00.8]} 10... Nxe5 {[%clk 0:02:58.3]} 11. Rxe5 {[%clk
0:03:01.2]} 11... c6 {[%clk 0:02:59]} 12. d4 {[%clk 0:03:01.3]} 12... Bd6 {[%clk
0:02:59.4]} 13. Re1 {[%clk 0:03:01.8]} 13... Qh4 {[%clk 0:02:59.7]} 14. g3
{[%clk 0:03:02.3]} 14... Qh3 {[%clk 0:02:59.8]} 15. Be3 {[%clk 0:03:01.6]} 15...
Bg4 {[%clk 0:02:59.5]} 16. Qd3 {[%clk 0:03:01.1]} 16... Bf3 {[%clk 0:02:52.2]}
17. Qf1 {[%clk 0:03:00.1]} 17... Qh5 {[%clk 0:02:52.7]} 18. Nd2 {[%clk
0:02:57.1]} 18... Bg4 {[%clk 0:02:50.1]} 19. a4 {[%clk 0:02:52.1]} 19... f5
{[%clk 0:02:47.3]} 20. Bxd5+ {[%clk 0:02:49.9]} 20... cxd5 {[%clk 0:02:47.2]}
21. f4 {[%clk 0:02:45.2]} 21... bxa4 {[%clk 0:02:42.7]} 22. Rxa4 {[%clk
0:02:42.8]} 22... Rfe8 {[%clk 0:02:42.5]} 23. Qf2 {[%clk 0:02:39.6]} 23... Re6
{[%clk 0:02:32.9]} 24. Qg2 {[%clk 0:02:17.8]} 24... Rae8 {[%clk 0:02:24.5]} 25.
Qxd5 {[%clk 0:02:16.8]} 25... Kh8 {[%clk 0:02:22.5]} 26. Rxa6 {[%clk 0:02:08.1]}
26... Rxe3 {[%clk 0:02:17.1]} 27. Rxe3 {[%clk 0:02:07]} 27... Rxe3 {[%clk
0:02:16.5]} 28. Ra8+ {[%clk 0:01:48.4]} 28... Re8 {[%clk 0:02:15.1]} 29. Qc6
{[%clk 0:01:04.6]} 29... Bb8 {[%clk 0:01:56.2]} 30. Qb7 {[%clk 0:00:23.4]} 30...
Re1+ {[%clk 0:01:53.4]} 31. Nf1 {[%clk 0:00:19.6]} 31... Re8 {[%clk 0:01:25.3]}
32. Rxb8 {[%clk 0:00:18]} 32... h6 {[%clk 0:01:24.1]} 33. Qa8 {[%clk 0:00:15.1]}
33... Rxb8 {[%clk 0:01:21.8]} 34. Qxb8+ {[%clk 0:00:16]} 34... Kh7 {[%clk
0:01:22]} 35. Qe5 {[%clk 0:00:14.3]} 35... Qf7 {[%clk 0:01:18.9]} 36. Ne3 {[%clk
0:00:13.6]} 36... Bh3 {[%clk 0:01:18.3]} 37. d5 {[%clk 0:00:10.9]} 37... Qd7
{[%clk 0:01:13.2]} 38. g4 {[%clk 0:00:10.4]} 38... Qa7 {[%clk 0:00:59.1]} 39.
Qxf5+ {[%clk 0:00:09.1]} 39... Kg8 {[%clk 0:00:58.6]} 40. Qe6+ {[%clk 0:00:09]}
40... Kh8 {[%clk 0:00:56.7]} 41. Qe8+ {[%clk 0:00:08.5]} 41... Kh7 {[%clk
0:00:56.4]} 42. Qe4+ {[%clk 0:00:09.1]} 42... Kh8 {[%clk 0:00:56.2]} 43. Qe8+
{[%clk 0:00:09]} 43... Kh7 {[%clk 0:00:56.4]} 44. Qe4+ {[%clk 0:00:09]} 44...
Kg8 {[%clk 0:00:56.7]} 45. Kf2 {[%clk 0:00:08.9]} 45... Qa2 {[%clk 0:00:53.2]}
46. Qe8+ {[%clk 0:00:08.1]} 46... Kh7 {[%clk 0:00:51.9]} 47. Qe4+ {[%clk
0:00:08.6]} 47... Kh8 {[%clk 0:00:52.1]} 48. Qe8+ {[%clk 0:00:08.7]} 48... Kh7
{[%clk 0:00:52.4]} 49. Qe4+ {[%clk 0:00:08.1]} 49... Kg8 {[%clk 0:00:52.8]} 50.
Qe6+ {[%clk 0:00:07.4]} 50... Kf8 {[%clk 0:00:52.4]} 51. Nf5 {[%clk 0:00:06]}
51... Qxb2+ {[%clk 0:00:52.1]} 52. Ke3 {[%clk 0:00:06.3]} 52... Qxc3+ {[%clk
0:00:52.1]} 53. Ke2 {[%clk 0:00:05.9]} 53... Bxg4+ {[%clk 0:00:51.1]} 54. Kf2
{[%clk 0:00:05.8]} 54... Qf3+ {[%clk 0:00:50.9]} 55. Kg1 {[%clk 0:00:05.2]}
55... Qd1+ {[%clk 0:00:49.6]} 56. Kg2 {[%clk 0:00:04.8]} 56... Qc2+ {[%clk
0:00:29.2]} 57. Kg3 {[%clk 0:00:04.9]} 57... Qxf5 {[%clk 0:00:29.7]} 58. Qd6+
{[%clk 0:00:04.3]} 58... Kg8 {[%clk 0:00:25.1]} 59. Qb8+ {[%clk 0:00:03.8]}
59... Kh7 {[%clk 0:00:24.7]} 60. d6 {[%clk 0:00:04.1]} 60... h5 {[%clk
0:00:21.2]} 61. h3 {[%clk 0:00:03.6]} 61... Qd3+ {[%clk 0:00:20.5]} 62. Kh4
{[%clk 0:00:03.8]} 62... Qxh3+ {[%clk 0:00:20.6]} 63. Kg5 {[%clk 0:00:04.7]}
63... Qd3 {[%clk 0:00:18.8]} 64. Qe8 {[%clk 0:00:01.8]} 64... Qf5+ {[%clk
0:00:17.5]} 65. Kh4 {[%clk 0:00:01.3]} 65... Qf6+ {[%clk 0:00:18.1]} 0-1

[Event "*** Titled Tuesday Blitz"]
[Site "Chess.com"]
[Date "2020.05.26"]
[Round "10"]
[White "djano"]
[Black "GMartin_Petrov"]
[Result "0-1"]
[WhiteElo "2447"]
[BlackElo "2571"]
[TimeControl "180+1"]
[EndTime "12:04:20 PDT"]
[Termination "GMartin_Petrov won on time"]

1. d4 {[%clk 0:03:00.9]} 1... Nf6 {[%clk 0:02:58.4]} 2. Nf3 {[%clk 0:03:01]}
2... e6 {[%clk 0:02:58.6]} 3. Bf4 {[%clk 0:03:01]} 3... d5 {[%clk 0:02:57]} 4.
Nbd2 {[%clk 0:02:59.5]} 4... Bd6 {[%clk 0:02:56.9]} 5. Bg3 {[%clk 0:02:58.9]}
5... O-O {[%clk 0:02:53.4]} 6. e3 {[%clk 0:02:59.1]} 6... c5 {[%clk 0:02:53]} 7.
c3 {[%clk 0:02:58.4]} 7... Nc6 {[%clk 0:02:53.6]} 8. Bd3 {[%clk 0:02:58.4]} 8...
b6 {[%clk 0:02:51]} 9. Qe2 {[%clk 0:02:57.5]} 9... Bb7 {[%clk 0:02:51.1]} 10.
Rd1 {[%clk 0:02:57.5]} 10... a5 {[%clk 0:02:50.1]} 11. e4 {[%clk 0:02:43.9]}
11... Be7 {[%clk 0:02:50.4]} 12. e5 {[%clk 0:02:33.9]} 12... Nh5 {[%clk
0:02:50.9]} 13. O-O {[%clk 0:02:25]} 13... cxd4 {[%clk 0:02:46.8]} 14. Nxd4
{[%clk 0:02:22.8]} 14... Nxg3 {[%clk 0:02:46]} 15. hxg3 {[%clk 0:02:23.7]} 15...
Qc8 {[%clk 0:02:31.3]} 16. N2f3 {[%clk 0:02:18.7]} 16... Nb8 {[%clk 0:02:21.9]}
17. Nh2 {[%clk 0:02:09.2]} 17... Ba6 {[%clk 0:02:21.6]} 18. Bb5 {[%clk
0:02:05.7]} 18... Nd7 {[%clk 0:02:16.6]} 19. f4 {[%clk 0:02:04.4]} 19... Bc5
{[%clk 0:02:13.3]} 20. Nf3 {[%clk 0:01:57.6]} 20... Bxb5 {[%clk 0:02:01.9]} 21.
Qxb5 {[%clk 0:01:56.2]} 21... f6 {[%clk 0:02:00.2]} 22. exf6 {[%clk 0:01:50.6]}
22... Nxf6 {[%clk 0:01:59.4]} 23. Ng5 {[%clk 0:01:07.3]} 23... h6 {[%clk
0:01:52.1]} 24. Nf3 {[%clk 0:01:01.2]} 24... Ne4 {[%clk 0:01:41.7]} 25. Kh2
{[%clk 0:01:01.3]} 25... Bd6 {[%clk 0:01:36.1]} 26. Qc6 {[%clk 0:00:57.2]} 26...
Qxc6 {[%clk 0:01:25]} 27. Nxc6 {[%clk 0:00:58.1]} 27... g5 {[%clk 0:01:25.4]}
28. Nfe5 {[%clk 0:00:53]} 28... Rf5 {[%clk 0:01:16.8]} 29. Nd4 {[%clk
0:00:36.7]} 29... Rf6 {[%clk 0:01:00.1]} 30. Ng4 {[%clk 0:00:29.7]} 30... Rg6
{[%clk 0:00:55.8]} 31. Ne5 {[%clk 0:00:23.4]} 31... Rf6 {[%clk 0:00:48.7]} 32.
Ng4 {[%clk 0:00:23.1]} 32... Rg6 {[%clk 0:00:22.4]} 33. Ne5 {[%clk 0:00:23.2]}
33... Rg7 {[%clk 0:00:22.3]} 34. Nxe6 {[%clk 0:00:22.4]} 34... Re7 {[%clk
0:00:22.4]} 35. Nd4 {[%clk 0:00:20.5]} 35... Nxg3 {[%clk 0:00:20.2]} 36. Kxg3
{[%clk 0:00:18.9]} 36... gxf4+ {[%clk 0:00:20.3]} 37. Kf3 {[%clk 0:00:14.3]}
37... Rxe5 {[%clk 0:00:19.9]} 38. Nc6 {[%clk 0:00:11.6]} 38... Re3+ {[%clk
0:00:18.3]} 39. Kf2 {[%clk 0:00:11.4]} 39... Bc5 {[%clk 0:00:18.8]} 40. Nd4
{[%clk 0:00:10]} 40... Rae8 {[%clk 0:00:17.6]} 41. Kg1 {[%clk 0:00:10.1]} 41...
R8e4 {[%clk 0:00:15.9]} 42. Kh1 {[%clk 0:00:09.4]} 42... Bxd4 {[%clk 0:00:12.1]}
43. cxd4 {[%clk 0:00:09.3]} 43... Re2 {[%clk 0:00:11.1]} 44. b3 {[%clk
0:00:07.6]} 44... Rxa2 {[%clk 0:00:10]} 45. Rd3 {[%clk 0:00:08.1]} 45... Ree2
{[%clk 0:00:09.1]} 46. Rg1 {[%clk 0:00:07.5]} 46... Rf2 {[%clk 0:00:08.6]} 47.
Rh3 {[%clk 0:00:06.3]} 47... Kh7 {[%clk 0:00:08.1]} 48. Rh5 {[%clk 0:00:05.9]}
48... f3 {[%clk 0:00:07.9]} 49. g4 {[%clk 0:00:03.7]} 49... Rfe2 {[%clk
0:00:05.1]} 50. Rh3 {[%clk 0:00:03]} 50... f2 {[%clk 0:00:05]} 51. Rf1 {[%clk
0:00:02.6]} 51... Re4 {[%clk 0:00:05.3]} 52. g5 {[%clk 0:00:02.4]} 52... Rxd4
{[%clk 0:00:04.4]} 53. Rxh6+ {[%clk 0:00:01.5]} 53... Kg7 {[%clk 0:00:04.1]} 54.
Rh2 {[%clk 0:00:02.1]} 54... Rf4 {[%clk 0:00:03.3]} 55. Rg2 {[%clk 0:00:01.9]}
55... Kg6 {[%clk 0:00:03.4]} 56. Kh2 {[%clk 0:00:02.8]} 56... Rb2 {[%clk
0:00:03.3]} 57. Kg3 {[%clk 0:00:03.4]} 57... Rf5 {[%clk 0:00:03.2]} 58. Kh2
{[%clk 0:00:03.3]} 58... Rxb3 {[%clk 0:00:02.9]} 59. Rg3 {[%clk 0:00:01.6]}
59... Rxg3 {[%clk 0:00:01.7]} 60. Kxg3 {[%clk 0:00:02.5]} 60... Kxg5 {[%clk
0:00:02.6]} 61. Kg2 {[%clk 0:00:02.4]} 61... d4 {[%clk 0:00:03.1]} 0-1

[Event "*** Titled Tuesday Blitz"]
[Site "Chess.com"]
[Date "2020.05.26"]
[Round "10"]
[White "WonderChampion"]
[Black "gumimis"]
[Result "1-0"]
[WhiteElo "1950"]
[BlackElo "2165"]
[TimeControl "180+1"]
[EndTime "12:04:32 PDT"]
[Termination "WonderChampion won by checkmate"]

1. e4 {[%clk 0:03:00.9]} 1... c5 {[%clk 0:02:58.3]} 2. Nf3 {[%clk 0:02:58.5]}
2... d6 {[%clk 0:02:58.3]} 3. Bb5+ {[%clk 0:02:57]} 3... Nd7 {[%clk 0:02:58.2]}
4. d4 {[%clk 0:02:56.2]} 4... Nf6 {[%clk 0:02:55.3]} 5. Nc3 {[%clk 0:02:53.6]}
5... a6 {[%clk 0:02:54.5]} 6. Be2 {[%clk 0:02:50]} 6... cxd4 {[%clk 0:02:49.8]}
7. Nxd4 {[%clk 0:02:49.7]} 7... e6 {[%clk 0:02:48.8]} 8. O-O {[%clk 0:02:49]}
8... Be7 {[%clk 0:02:49]} 9. Be3 {[%clk 0:02:45.8]} 9... O-O {[%clk 0:02:48.2]}
10. Kh1 {[%clk 0:02:45.3]} 10... Qc7 {[%clk 0:02:45.6]} 11. f4 {[%clk
0:02:43.7]} 11... b5 {[%clk 0:02:45.4]} 12. a3 {[%clk 0:02:43.1]} 12... Bb7
{[%clk 0:02:45.2]} 13. Bd3 {[%clk 0:02:37.5]} 13... d5 {[%clk 0:02:25.8]} 14. e5
{[%clk 0:02:35.4]} 14... Ne4 {[%clk 0:02:25.8]} 15. Bxe4 {[%clk 0:02:30.2]}
15... dxe4 {[%clk 0:02:26]} 16. Qh5 {[%clk 0:02:27.9]} 16... g6 {[%clk
0:02:17.3]} 17. Qh3 {[%clk 0:02:21.3]} 17... Nb6 {[%clk 0:02:01.4]} 18. Nxe6
{[%clk 0:02:16.6]} 18... fxe6 {[%clk 0:01:56.3]} 19. Qxe6+ {[%clk 0:02:16.3]}
19... Rf7 {[%clk 0:01:48.4]} 20. Qxb6 {[%clk 0:02:13.2]} 20... Qxb6 {[%clk
0:01:45.2]} 21. Bxb6 {[%clk 0:02:13.5]} 21... Rc8 {[%clk 0:01:34.3]} 22. Rad1
{[%clk 0:02:01.3]} 22... b4 {[%clk 0:01:32.9]} 23. axb4 {[%clk 0:01:58.5]} 23...
Bxb4 {[%clk 0:01:33.2]} 24. Bd4 {[%clk 0:01:59.1]} 24... Rcf8 {[%clk 0:01:20.5]}
25. Ne2 {[%clk 0:01:44.9]} 25... g5 {[%clk 0:01:19.7]} 26. c3 {[%clk 0:01:44.4]}
26... Be7 {[%clk 0:01:17.7]} 27. Be3 {[%clk 0:01:43.5]} 27... gxf4 {[%clk
0:01:16]} 28. Rxf4 {[%clk 0:01:37.3]} 28... Rxf4 {[%clk 0:01:13.1]} 29. Nxf4
{[%clk 0:01:36.7]} 29... Bg5 {[%clk 0:01:11.1]} 30. g3 {[%clk 0:01:13.8]} 30...
Re8 {[%clk 0:00:58]} 31. h4 {[%clk 0:01:01.3]} 31... Bh6 {[%clk 0:00:51.9]} 32.
Rd6 {[%clk 0:01:01.2]} 32... Bg7 {[%clk 0:00:48.9]} 33. e6 {[%clk 0:00:58.7]}
33... Be5 {[%clk 0:00:48.4]} 34. Rb6 {[%clk 0:00:56.8]} 34... Bc8 {[%clk
0:00:44.8]} 35. Rc6 {[%clk 0:00:36.8]} 35... Bb7 {[%clk 0:00:36.4]} 36. Rb6
{[%clk 0:00:30]} 36... Bc8 {[%clk 0:00:36.7]} 37. Kg2 {[%clk 0:00:27.6]} 37...
Bxf4 {[%clk 0:00:36.4]} 38. gxf4 {[%clk 0:00:27.1]} 38... Rxe6 {[%clk
0:00:36.4]} 39. Rxe6 {[%clk 0:00:26.8]} 39... Bxe6 {[%clk 0:00:36.6]} 40. Kf2
{[%clk 0:00:26]} 40... Kf7 {[%clk 0:00:36.1]} 41. Bd4 {[%clk 0:00:25.9]} 41...
Kg6 {[%clk 0:00:31.8]} 42. Ke3 {[%clk 0:00:24.4]} 42... Kf5 {[%clk 0:00:31.8]}
43. Be5 {[%clk 0:00:21.6]} 43... Bd5 {[%clk 0:00:26.5]} 44. Bd6 {[%clk
0:00:19.1]} 44... Kg4 {[%clk 0:00:21.1]} 45. Be7 {[%clk 0:00:18.9]} 45... Bb7
{[%clk 0:00:18.5]} 46. Bg5 {[%clk 0:00:19.1]} 46... Kf5 {[%clk 0:00:16]} 47. c4
{[%clk 0:00:19.1]} 47... Ke6 {[%clk 0:00:14.4]} 48. b4 {[%clk 0:00:18.8]} 48...
Kd6 {[%clk 0:00:13.6]} 49. Kd4 {[%clk 0:00:18.7]} 49... Ke6 {[%clk 0:00:12.2]}
50. Bh6 {[%clk 0:00:14.2]} 50... Kd7 {[%clk 0:00:10.6]} 51. f5 {[%clk
0:00:13.1]} 51... Ke7 {[%clk 0:00:09.7]} 52. Bg5+ {[%clk 0:00:13.1]} 52... Kd7
{[%clk 0:00:09.5]} 53. Ke5 {[%clk 0:00:12.4]} 53... Ke8 {[%clk 0:00:08.4]} 54.
Ke6 {[%clk 0:00:11.9]} 54... Bc8+ {[%clk 0:00:08.1]} 55. Kf6 {[%clk 0:00:10.8]}
55... Kf8 {[%clk 0:00:07.3]} 56. Ke5 {[%clk 0:00:10.7]} 56... Bb7 {[%clk
0:00:07.1]} 57. Kf6 {[%clk 0:00:08.4]} 57... Kg8 {[%clk 0:00:06]} 58. Ke7 {[%clk
0:00:06.3]} 58... e3 {[%clk 0:00:03.3]} 59. Bxe3 {[%clk 0:00:05]} 59... Be4
{[%clk 0:00:03.5]} 60. f6 {[%clk 0:00:04.9]} 60... Bg6 {[%clk 0:00:04.2]} 61. c5
{[%clk 0:00:04.8]} 61... Bf7 {[%clk 0:00:03.4]} 62. c6 {[%clk 0:00:05]} 62... a5
{[%clk 0:00:04]} 63. c7 {[%clk 0:00:05.2]} 63... axb4 {[%clk 0:00:04]} 64. c8=Q+
{[%clk 0:00:05.5]} 64... Be8 {[%clk 0:00:04.4]} 65. Qxe8# {[%clk 0:00:06]} 1-0

[Event "*** Titled Tuesday Blitz"]
[Site "Chess.com"]
[Date "2020.05.26"]
[Round "10"]
[White "CyberdelChess"]
[Black "Larina_Marija"]
[Result "1/2-1/2"]
[WhiteElo "2267"]
[BlackElo "2153"]
[TimeControl "180+1"]
[EndTime "12:04:42 PDT"]
[Termination "Game drawn by repetition"]

1. e4 {[%clk 0:03:00.9]} 1... d5 {[%clk 0:02:59.2]} 2. exd5 {[%clk 0:03:00.2]}
2... Qxd5 {[%clk 0:03:00.1]} 3. Nc3 {[%clk 0:02:57.5]} 3... Qa5 {[%clk
0:03:00.5]} 4. d4 {[%clk 0:02:57.7]} 4... Nf6 {[%clk 0:03:00.7]} 5. Nf3 {[%clk
0:02:57.6]} 5... Bf5 {[%clk 0:03:01.1]} 6. Bc4 {[%clk 0:02:56.5]} 6... e6 {[%clk
0:03:01.6]} 7. Bd2 {[%clk 0:02:52.8]} 7... c6 {[%clk 0:03:01.7]} 8. Bb3 {[%clk
0:02:48.4]} 8... Nbd7 {[%clk 0:02:56.3]} 9. Qe2 {[%clk 0:02:48.2]} 9... Qc7
{[%clk 0:02:52.1]} 10. h3 {[%clk 0:02:45.9]} 10... h6 {[%clk 0:02:43]} 11. O-O-O
{[%clk 0:02:35]} 11... O-O-O {[%clk 0:02:41.6]} 12. Kb1 {[%clk 0:02:34.5]} 12...
Nb6 {[%clk 0:02:37.3]} 13. g4 {[%clk 0:02:29.4]} 13... Bh7 {[%clk 0:02:31.6]}
14. Ne5 {[%clk 0:02:19.2]} 14... Bd6 {[%clk 0:02:28.4]} 15. Rhe1 {[%clk
0:01:50.5]} 15... Rhe8 {[%clk 0:02:19.9]} 16. h4 {[%clk 0:01:40.7]} 16... Nbd5
{[%clk 0:02:05.5]} 17. g5 {[%clk 0:01:37]} 17... Nxc3+ {[%clk 0:02:05.2]} 18.
Bxc3 {[%clk 0:01:36.7]} 18... hxg5 {[%clk 0:02:05.7]} 19. hxg5 {[%clk
0:01:36.3]} 19... Nd5 {[%clk 0:02:06]} 20. Bd2 {[%clk 0:01:36.6]} 20... f6
{[%clk 0:01:53.8]} 21. Nc4 {[%clk 0:01:32.9]} 21... Bf4 {[%clk 0:01:49.3]} 22.
gxf6 {[%clk 0:01:26.5]} 22... gxf6 {[%clk 0:01:48.1]} 23. Ba5 {[%clk 0:01:24.2]}
23... b6 {[%clk 0:01:45.9]} 24. Bd2 {[%clk 0:01:21.8]} 24... Bxd2 {[%clk
0:01:44.7]} 25. Qxd2 {[%clk 0:01:20.1]} 25... Kb7 {[%clk 0:01:29.7]} 26. Qh6
{[%clk 0:01:08.5]} 26... Bf5 {[%clk 0:01:22.8]} 27. Ne3 {[%clk 0:01:05.8]} 27...
Nxe3 {[%clk 0:01:22.5]} 28. Qxe3 {[%clk 0:00:56.4]} 28... e5 {[%clk 0:01:17.5]}
29. d5 {[%clk 0:00:49.9]} 29... c5 {[%clk 0:01:12.8]} 30. d6 {[%clk 0:00:41.4]}
30... Qd7 {[%clk 0:00:58.9]} 31. Qf3+ {[%clk 0:00:32.2]} 31... e4 {[%clk
0:00:57.4]} 32. Bd5+ {[%clk 0:00:29.5]} 32... Kb8 {[%clk 0:00:57.2]} 33. Bxe4
{[%clk 0:00:29.7]} 33... Bxe4 {[%clk 0:00:56.6]} 34. Rxe4 {[%clk 0:00:30.6]}
34... Rxe4 {[%clk 0:00:55.5]} 35. Qxe4 {[%clk 0:00:31.5]} 35... Qb7 {[%clk
0:00:48.1]} 36. Qe6 {[%clk 0:00:27.5]} 36... Qf3 {[%clk 0:00:41.8]} 37. Re1
{[%clk 0:00:16.3]} 37... Qf4 {[%clk 0:00:31.4]} 38. d7 {[%clk 0:00:07.5]} 38...
Kc7 {[%clk 0:00:21.2]} 39. Rd1 {[%clk 0:00:05.7]} 39... Qe5 {[%clk 0:00:19.7]}
40. Qf7 {[%clk 0:00:03.6]} 40... Qe2 {[%clk 0:00:14.7]} 41. Qd5 {[%clk
0:00:02.4]} 41... Qe5 {[%clk 0:00:13.1]} 42. Qf7 {[%clk 0:00:02.6]} 42... Qe2
{[%clk 0:00:12.8]} 43. Qd5 {[%clk 0:00:02.8]} 43... Qe5 {[%clk 0:00:12.7]} 44.
Qd2 {[%clk 0:00:03.2]} 44... Qe6 {[%clk 0:00:11.1]} 45. Qf4+ {[%clk 0:00:03.3]}
45... Qe5 {[%clk 0:00:10.1]} 46. Qd2 {[%clk 0:00:01.1]} 46... Qe6 {[%clk
0:00:10.1]} 47. Qd3 {[%clk 0:00:01.5]} 47... Rxd7 {[%clk 0:00:09.3]} 48. Qxd7+
{[%clk 0:00:01.7]} 48... Qxd7 {[%clk 0:00:09.2]} 49. Rxd7+ {[%clk 0:00:02.5]}
49... Kxd7 {[%clk 0:00:09.7]} 50. Kc1 {[%clk 0:00:03.4]} 50... Ke6 {[%clk
0:00:10]} 51. Kd2 {[%clk 0:00:04.2]} 51... Kd5 {[%clk 0:00:08.6]} 52. Kd3 {[%clk
0:00:04.6]} 52... b5 {[%clk 0:00:07]} 53. b3 {[%clk 0:00:04.1]} 53... f5 {[%clk
0:00:06.7]} 54. Ke3 {[%clk 0:00:03.9]} 54... Ke5 {[%clk 0:00:06.6]} 55. c4
{[%clk 0:00:03.2]} 55... b4 {[%clk 0:00:06.4]} 56. f4+ {[%clk 0:00:02]} 56...
Ke6 {[%clk 0:00:05.4]} 57. Kf3 {[%clk 0:00:02.3]} 57... Kf6 {[%clk 0:00:04.4]}
58. Kg3 {[%clk 0:00:02.7]} 58... a6 {[%clk 0:00:04.7]} 59. Kh4 {[%clk
0:00:02.9]} 59... Kg6 {[%clk 0:00:05.2]} 60. Kg3 {[%clk 0:00:01.8]} 60... Kh5
{[%clk 0:00:05.1]} 61. Kh3 {[%clk 0:00:02.2]} 61... a5 {[%clk 0:00:04.8]} 62.
Kg3 {[%clk 0:00:02.5]} 62... Kg6 {[%clk 0:00:04.8]} 63. Kh4 {[%clk 0:00:02.7]}
63... Kh6 {[%clk 0:00:05.3]} 64. Kg3 {[%clk 0:00:02.9]} 64... Kh5 {[%clk
0:00:05.6]} 65. Kh3 {[%clk 0:00:03.3]} 65... Kg6 {[%clk 0:00:05.6]} 66. Kh4
{[%clk 0:00:04.2]} 66... Kh6 {[%clk 0:00:05.6]} 67. Kg3 {[%clk 0:00:04.2]} 67...
Kg6 {[%clk 0:00:05.4]} 68. Kh3 {[%clk 0:00:05.1]} 68... Kh5 {[%clk 0:00:05.4]}
69. Kg3 {[%clk 0:00:05.3]} 69... Kg6 {[%clk 0:00:05.9]} 1/2-1/2